[Event "FIDE Candidates 2024"]
[Site "Toronto"]
[Date "2024.04.18"]
[Round "12.4"]
[White "Caruana, Fabiano"]
[Black "Vidit, Santosh Gujrathi"]
[Result "1-0"]
[ECO "C54"]
[WhiteElo "2803"]
[BlackElo "2727"]
[Annotator "TA"]
[PlyCount "103"]
[EventDate "2024.04.02"]
[EventType "tourn"]
[EventCountry "CAN"]
[SourceTitle "playchess.com"]
[Source "ChessBase"]
[SourceQuality "1"]
[TimeControl "40/7200:1800+30"]

{[%evp 31,103,29,19,27,22,0,0,0,0,0,27,40,28,29,32,3,35,38,40,30,72,46,55,52,58,0,75,32,66,63,80,54,68,56,84,93,131,141,146,136,133,128,143,50,18,12,33,58,22,37,145,147,200,193,473,90,85,96,91,93,145,149,155,164,301,269,261,251,634,543,29982,29983,29983,29984]} 1. e4 {[%emt 0:00:03]} e5 {[%emt 0:00:41]} 2. Nf3 {[%emt 0:00:06]} Nc6 {[%emt 0:00:08]} 3. Bc4 {[%emt 0:00:06]} Bc5 {[%emt 0:00:12]} 4. O-O {[%emt 0:00:08]} Nf6 {[%emt 0:00:09]} 5. d3 {[%emt 0:00:05]} d6 {[%emt 0:00:29]} 6. c3 {[%emt 0:00:17]} a6 {[%emt 0:00:21]} 7. a4 {[%emt 0:00:23]} Ba7 {[%emt 0:00:57]} 8. Nbd2 {[%emt 0:00:56]} O-O {[%emt 0:00:21]} 9. h3 {[%emt 0:00:08]} Ne7 {[%emt 0:00:50]} 10. Re1 {[%emt 0:00:53]} Ng6 {[%emt 0:00:36] C54: Giuoco Piano: 4 c3 Nf6, main lines with 5 d4 and 5 d3.} 11. a5 $5 {[%emt 0:04:30][%mdl 4] A promising side line.} c6 {[%emt 0:02:27]} 12. Bb3 {[%emt 0:01:23]} Re8 {[%emt 0:11:24]} 13. d4 {[%emt 0:13:57]} d5 $146 {[%emt 0:05:56]} ({Predecessor:} 13... h6 14. Bc2 Nh5 15. Nxe5 dxe5 16. Qxh5 exd4 17. Nf3 c5 18. cxd4 cxd4 19. Bd3 Be6 {0-1 Nozdrachev,V (2486)-Gareyev,T (2569) Wch Rapid St Petersburg 2018 (15)}) 14. dxe5 {[%emt 0:04:37]} Nxe5 {[%emt 0:03:06]} 15. Nxe5 {[%emt 0:01:05]} Rxe5 {[%emt 0:00:08]} 16. exd5 {[%emt 0:07:38]} Rxe1+ {[%emt 0:04:35]} 17. Qxe1 {[%emt 0:00:11]} Nxd5 {[%emt 0:00:06]} 18. Bc2 {[%emt 0:08:53]} Be6 {[%emt 0:03:08]} 19. Nf3 {[%emt 0:01:33]} Qd7 {[%emt 0:08:04]} 20. c4 {[%emt 0:07:27]} Ne7 {[%emt 0:05:20]} (20... Nf6 $5) 21. Be3 {[%emt 0:09:09]} Bxe3 {[%emt 0:11:13]} 22. Qxe3 {[%emt 0:00:08]} Rd8 {[%emt 0:07:08]} (22... Bxc4 $2 23. Ne5 Qe6 24. Qe4 $18) 23. Qc5 {[%emt 0:06:54]} h6 {[%emt 0:08:30]} 24. b3 {[%emt 0:09:54]} Qc7 {[%emt 0:05:14]} 25. Re1 {[%emt 0:01:05]} Kf8 {[%emt 0:01:30]} 26. Re3 {[%emt 0:09:28]} Ke8 {[%emt 0:11:04]} 27. Qh5 {[%emt 0:07:20]} Kf8 {[%emt 0:11:25]} 28. Qc5 {[%emt 0:00:37]} Ke8 $1 {[%emt 0:00:06]} 29. g4 {[%emt 0:00:13]} Qf4 {[%emt 0:02:13]} 30. Kg2 {[%emt 0:01:08]} Rd7 {[%emt 0:01:30]} 31. Re4 {[%emt 0:03:00]} Qd6 {[%emt 0:01:13]} 32. Qe3 {[%emt 0:00:33]} c5 {[%emt 0:02:26]} 33. Re5 {[%emt 0:03:33]} Nc6 {[%emt 0:01:39]} 34. Rd5 {[%emt 0:01:45]} Qc7 {[%emt 0:01:09]} 35. Rxc5 {[%emt 0:01:01]} Re7 {[%emt 0:00:17]} 36. Qc3 {[%emt 0:01:13]} Qd6 {[%emt 0:00:26]} 37. Rh5 {[%emt 0:01:57]} (37. b4 $16 Kf8 38. g5) 37... f6 $1 $14 {[%emt 0:00:14]} 38. Bg6+ {[%emt 0:02:45]} Kd8 {[%emt 0:00:24]} 39. Qe3 {[%emt 0:00:39]} Kc8 {[%emt 0:02:06]} 40. Qb6 {[%emt 0:00:00]} Kb8 {[%emt 0:00:00]} (40... Qf4 $14 41. Bf5 Bxf5 42. Rxf5 Qc7) 41. Rc5 $1 $16 {[%emt 0:04:23]} Bd7 {[%emt 0:09:09] [#]} (41... Bc8 $16 42. Rd5 Qc7) 42. b4 $1 $18 {[%emt 0:07:58]} Qf4 $2 {[%emt 0:10:30]} (42... Qc7 {was worth a try.}) 43. Bf5 $2 {[%emt 0:01:33]} (43. b5 $18 {[%cal Rc5c6]} axb5 44. cxb5 Bxg4 45. Ng1 (45. hxg4 Qxg4+ 46. Kh2 Qxf3 $11)) 43... Bxf5 $16 {[%emt 0:03:05]} 44. Rxf5 {[%emt 0:00:21]} Qc7 {[%emt 0:00:52]} 45. Qc5 {[%emt 0:02:43]} Re4 {[%emt 0:01:14] [#]} ({Black should play} 45... Re8 46. b5 Nxa5) 46. Qd5 $1 $16 {[%emt 0:11:06]} ({Reject} 46. Qf8+ $6 Ka7 $11) 46... Re2 {[%emt 0:01:07]} 47. b5 {[%emt 0:02:50]} Nxa5 {[%emt 0:02:54]} (47... axb5 $142 48. Qd3 (48. cxb5 Nxa5 49. Qd4 b6 $16) (48. Qxb5 Ra2 $11) 48... Re8) 48. Nd4 {[%emt 0:01:32]} Rb2 {[%emt 0:05:58]} 49. bxa6 {[%emt 0:02:16]} Nc6 $2 {[%emt 0:00:37]} (49... Nxc4 50. Qg8+ Ka7 51. Nb5+ Rxb5 52. Rxb5 Qc6+ 53. Qd5 Qxd5+ 54. Rxd5 Kxa6) 50. Qg8+ {[%emt 0:00:50]} Nd8 {[%emt 0:00:43]} 51. Rd5 {[%emt 0:00:55]} Ka7 {[%emt 0:00:30]} 52. Rxd8 {[%emt 0:00:35]} 1-0